Workbook

Sheet С количеством групп менее трех
U1: Приложение №2
B2: Критерии рейтинга малокомплектных ДОУ
B3: Наименование ДОУ | C3: 1 | D3: 2 | E3: 3 | F3: 4 | G3: 5 | H3: 6 | I3: 7 | J3: 8 | K3: 9 | L3: 10 | M3: 11 | N3: 12 | O3: 13 | P3: 14 | Q3: 15 | R3: 16 | S3: 17 | T3: ИТОГО | U3: Квып ДОО | V3: Кr | W3: Место в рейтинге
B4: Евлаштавский детский сад «Ромашка» | C4: 5 | D4: 3.3 | E4: 0 | F4: 3 | G4: 9 | H4: 5 | I4: 8 | J4: 7 | K4: 5 | L4: 0 | M4: 10 | N4: 6 | O4: 0 | P4: 5 | Q4: 10 | R4: 5 | S4: 3 | T4: =SUM(C4:S4) -> 84.3 | U4: =T4/110 -> 0.77 | V4: =U4/0.61 -> 1.26 | W4: 1
B5: Изминский детский сад «Саф чишмэ» | C5: 5 | D5: 10 | E5: 5 | F5: 3 | G5: 6 | H5: 5 | I5: 8 | J5: 7 | K5: 5 | L5: 0 | M5: 10 | N5: 6 | O5: 0 | P5: 5 | Q5: 6.28 | R5: 3 | S5: 0 | T5: =SUM(C5:S5) -> 84.28 | U5: =T5/110 -> 0.77 | V5: =U5/0.61 -> 1.26 | W5: 2
B6: Тимершикский детский сад «Кояшкай» | C6: 5 | D6: 6 | E6: 0 | F6: 3 | G6: 3 | H6: 5 | I6: 8 | J6: 8 | K6: 5 | L6: 0 | M6: 10 | N6: 6 | O6: 0 | P6: 5 | Q6: 10 | R6: 3 | S6: 3 | T6: =SUM(C6:S6) -> 80 | U6: =T6/110 -> 0.73 | V6: =U6/0.61 -> 1.19 | W6: 3
B7: Кызыл-Мешинский детский сад «Ак чэчэк» | C7: 5 | D7: 3.3 | E7: 0 | F7: 0 | G7: 6 | H7: 5 | I7: 8 | J7: 8 | K7: 5 | L7: 0 | M7: 10 | N7: 6 | O7: 0 | P7: 5 | Q7: 10 | R7: 5 | S7: 0 | T7: =SUM(C7:S7) -> 76.3 | U7: =T7/110 -> 0.69 | V7: =U7/0.61 -> 1.14 | W7: 4
B8: Мамалаевский детский сад «Кояшкай» | C8: 5 | D8: 10 | E8: 0 | F8: 0 | G8: 0 | H8: 5 | I8: 7 | J8: 7 | K8: 5 | L8: 0 | M8: 10 | N8: 6 | O8: 0 | P8: 5 | Q8: 10 | R8: 3 | S8: 3 | T8: =SUM(C8:S8) -> 76 | U8: =T8/110 -> 0.69 | V8: =U8/0.61 -> 1.13 | W8: 5
B9: Нижнешицинский детский сад «Ромашка» | C9: 5 | D9: 10 | E9: 0 | F9: 0 | G9: 0 | H9: 5 | I9: 7 | J9: 7 | K9: 5 | L9: 0 | M9: 10 | N9: 6 | O9: 0 | P9: 5 | Q9: 10 | R9: 5 | S9: 0 | T9: =SUM(C9:S9) -> 75 | U9: =T9/110 -> 0.68 | V9: =U9/0.61 -> 1.12 | W9: 6
B10: Большеарташский детский сад «Карлыгач» | C10: 5 | D10: 10 | E10: 0 | F10: 0 | G10: 6 | H10: 5 | I10: 7 | J10: 7 | K10: 0 | L10: 0 | M10: 10 | N10: 3 | O10: 0 | P10: 5 | Q10: 10 | R10: 3 | S10: 3 | T10: =SUM(C10:S10) -> 74 | U10: =T10/110 -> 0.67 | V10: =U10/0.61 -> 1.10 | W10: 7
B11: Большешинарский детский сад «Эллуки» | C11: 5 | D11: 9 | E11: 0 | F11: 3 | G11: 0 | H11: 5 | I11: 8 | J11: 7 | K11: 5 | L11: 0 | M11: 10 | N11: 3 | O11: 0 | P11: 5 | Q11: 10.00 | R11: 3 | S11: 0 | T11: =SUM(C11:S11) -> 73 | U11: =T11/110 -> 0.66 | V11: =U11/0.61 -> 1.09 | W11: 8
B12: Юлбатский детский сад «Ромашка» | C12: 5 | D12: 8.8 | E12: 5 | F12: 0 | G12: 3 | H12: 5 | I12: 8 | J12: 6 | K12: 0 | L12: 0 | M12: 5.3 | N12: 6 | O12: 0 | P12: 5 | Q12: 10 | R12: 3 | S12: 0 | T12: =SUM(C12:S12) -> 70.1 | U12: =T12/110 -> 0.64 | V12: =U12/0.61 -> 1.04 | W12: 9
B13: Кильдебякский детский сад «Кояшкай» | C13: 5 | D13: 0 | E13: 0 | F13: 3 | G13: 6 | H13: 5 | I13: 8 | J13: 8 | K13: 5 | L13: 0 | M13: 9 | N13: 1 | O13: 0 | P13: 5 | Q13: 10 | R13: 5 | S13: 0 | T13: =SUM(C13:S13) -> 70 | U13: =T13/110 -> 0.64 | V13: =U13/0.61 -> 1.04 | W13: 10
B14: Старомичанский детский сад «Тан» | C14: 5 | D14: 10 | E14: 0 | F14: 0 | G14: 0 | H14: 5 | I14: 7 | J14: 7 | K14: 0 | L14: 0 | M14: 10 | N14: 6 | O14: 0 | P14: 5 | Q14: 10 | R14: 3 | S14: 0 | T14: =SUM(C14:S14) -> 68 | U14: =T14/110 -> 0.62 | V14: =U14/0.61 -> 1.01 | W14: 11
B15: Новомичанский детский сад «Каенкай» | C15: 5 | D15: 0 | E15: 0 | F15: 0 | G15: 0 | H15: 5 | I15: 7 | J15: 7 | K15: 5 | L15: 0 | M15: 10 | N15: 6 | O15: 0 | P15: 5 | Q15: 10 | R15: 3 | S15: 3 | T15: =SUM(C15:S15) -> 66 | U15: =T15/110 -> 0.60 | V15: =U15/0.61 -> 0.98 | W15: 12
B16: Верхнешицинский детский сад «Ак каен» | C16: 5 | D16: 10 | E16: 0 | F16: 0 | G16: 3 | H16: 5 | I16: 7 | J16: 7 | K16: 5 | L16: 0 | M16: 10 | N16: 6 | O16: 0 | P16: 0 | Q16: 0 | R16: 5 | S16: 3 | T16: =SUM(C16:S16) -> 66 | U16: =T16/110 -> 0.60 | V16: =U16/0.61 -> 0.98 | W16: 13
B17: Илеберский детский сад «Умырзая» | C17: 5 | D17: 3.3 | E17: 0 | F17: 0 | G17: 3 | H17: 5 | I17: 8 | J17: 7 | K17: 0 | L17: 0 | M17: 10 | N17: 6 | O17: 0 | P17: 5 | Q17: 10 | R17: 3 | S17: 0 | T17: =SUM(C17:S17) -> 65.3 | U17: =T17/110 -> 0.59 | V17: =U17/0.61 -> 0.97 | W17: 14
B18: Верхнесиметский детский сад «Ромашка» | C18: 5 | D18: 0 | E18: 5 | F18: 0 | G18: 6 | H18: 5 | I18: 7 | J18: 7 | K18: 0.83 | L18: 0 | M18: 10 | N18: 6 | O18: 0 | P18: 5 | Q18: 0 | R18: 5 | S18: 3 | T18: =SUM(C18:S18) -> 64.83 | U18: =T18/110 -> 0.59 | V18: =U18/0.61 -> 0.97 | W18: 15
B19: Олуязский детский сад «Чэчкэ» | C19: 5 | D19: 0 | E19: 0 | F19: 0 | G19: 3 | H19: 5 | I19: 7 | J19: 8 | K19: 5 | L19: 0 | M19: 10 | N19: 6 | O19: 0 | P19: 0 | Q19: 10 | R19: 5 | S19: 0 | T19: =SUM(C19:S19) -> 64 | U19: =T19/110 -> 0.58 | V19: =U19/0.61 -> 0.95 | W19: 16
B20: Туктарский детский сад «Тамчы» | C20: 5 | D20: 0 | E20: 0 | F20: 0 | G20: 3 | H20: 5 | I20: 8 | J20: 7 | K20: 0 | L20: 0 | M20: 10 | N20: 6 | O20: 0 | P20: 5 | Q20: 10 | R20: 0 | S20: 3 | T20: =SUM(C20:S20) -> 62 | U20: =T20/110 -> 0.56 | V20: =U20/0.61 -> 0.92 | W20: 17
B21: Большекибячинский детский сад «Кубэлэк» | C21: 5 | D21: 3.3 | E21: 0 | F21: 6 | G21: 0 | H21: 5 | I21: 8 | J21: 8 | K21: 5 | L21: 0 | M21: 10 | N21: 6 | O21: 0 | P21: 0 | Q21: 2 | R21: 3 | S21: 0 | T21: =SUM(C21:S21) -> 61.3 | U21: =T21/110 -> 0.56 | V21: =U21/0.61 -> 0.91 | W21: 18
B22: Староикшурминский детский сад «Кояшкай» | C22: 5 | D22: 0 | E22: 0 | F22: 3 | G22: 0 | H22: 5 | I22: 8 | J22: 8 | K22: 5 | L22: 0 | M22: 10 | N22: 6 | O22: 0 | P22: 5 | Q22: 0 | R22: 3 | S22: 3 | T22: =SUM(C22:S22) -> 61 | U22: =T22/110 -> 0.55 | V22: =U22/0.61 -> 0.91 | W22: 19
B23: Лесхозский детский сад «Лэйсэн» | C23: 5 | D23: 0 | E23: 5 | F23: 3 | G23: 6 | H23: 5 | I23: 8 | J23: 7 | K23: 5 | L23: 0 | M23: 0 | N23: 6 | O23: 0 | P23: 5 | Q23: 0 | R23: 0 | S23: 3 | T23: =SUM(C23:S23) -> 58 | U23: =T23/110 -> 0.53 | V23: =U23/0.61 -> 0.86 | W23: 20
B24: Большеныртинский детский сад «Милэшкэй» | C24: 5 | D24: 3.33 | E24: 0 | F24: 0 | G24: 0 | H24: 5 | I24: 8 | J24: 8 | K24: 0 | L24: 0 | M24: 10 | N24: 3 | O24: 0 | P24: 5 | Q24: 10 | R24: 0 | S24: 0 | T24: =SUM(C24:S24) -> 57.33 | U24: =T24/110 -> 0.52 | V24: =U24/0.61 -> 0.85 | W24: 21
B25: Сабабашский детский сад «Кояшкай» | C25: 5 | D25: 0 | E25: 0 | F25: 0 | G25: 3 | H25: 5 | I25: 7 | J25: 7 | K25: 5 | L25: 0 | M25: 10 | N25: 6 | O25: 0 | P25: 5 | Q25: 0 | R25: 3 | S25: 0 | T25: =SUM(C25:S25) -> 56 | U25: =T25/110 -> 0.51 | V25: =U25/0.61 -> 0.83 | W25: 22
B26: Мешабашский детский сад «Тюльпан» | C26: 5 | D26: 0 | E26: 0 | F26: 0 | G26: 6 | H26: 5 | I26: 8 | J26: 7 | K26: 5 | L26: 0 | M26: 10 | N26: 3 | O26: 0 | P26: 0 | Q26: 0 | R26: 5 | S26: 0 | T26: =SUM(C26:S26) -> 54 | U26: =T26/110 -> 0.49 | V26: =U26/0.61 -> 0.80 | W26: 23
B27: Два Поля Арташский детский сад «Кубэлэк» | C27: 5 | D27: 0 | E27: 0 | F27: 0 | G27: 0 | H27: 5 | I27: 8 | J27: 8 | K27: 0 | L27: 0 | M27: 10 | N27: 6 | O27: 0 | P27: 5 | Q27: 0 | R27: 5 | S27: 0 | T27: =SUM(C27:S27) -> 52 | U27: =T27/110 -> 0.47 | V27: =U27/0.61 -> 0.77 | W27: 24
B28: Мингерский детский сад «Сэйлэн» | C28: 5 | D28: 0 | E28: 0 | F28: 0 | G28: 3 | H28: 5 | I28: 7 | J28: 7 | K28: 0 | L28: 0 | M28: 10 | N28: 3 | O28: 0 | P28: 0 | Q28: 10 | R28: 0 | S28: 0 | T28: =SUM(C28:S28) -> 50 | U28: =T28/110 -> 0.45 | V28: =U28/0.61 -> 0.75 | W28: 25
B29: Шикшинский детский сад «Акчарлак» | C29: 5 | D29: 0 | E29: 0 | F29: 0 | G29: 3 | H29: 5 | I29: 8 | J29: 6 | K29: 0 | L29: 0 | M29: 5.9 | N29: 6 | O29: 0 | P29: 5 | Q29: 0 | R29: 3 | S29: 3 | T29: =SUM(C29:S29) -> 49.9 | U29: =T29/110 -> 0.45 | V29: =U29/0.61 -> 0.74 | W29: 26
B30: Иштуганский детский сад «Березка» | C30: 5 | D30: 0 | E30: 0 | F30: 3 | G30: 9 | H30: 0 | I30: 8 | J30: 8 | K30: 0 | L30: 0 | M30: 2.7 | N30: 3 | O30: 0 | P30: 5 | Q30: 0 | R30: 3 | S30: 3 | T30: =SUM(C30:S30) -> 49.7 | U30: =T30/110 -> 0.45 | V30: =U30/0.61 -> 0.74 | W30: 27
B31: Бигенеевский детский сад «Ромашка» | C31: 5 | D31: 0 | E31: 0 | F31: 0 | G31: 0 | H31: 5 | I31: 7 | J31: 7 | K31: 0 | L31: 0 | M31: 6.00 | N31: 6 | O31: 0 | P31: 5 | Q31: 0 | R31: 3 | S31: 3 | T31: =SUM(C31:S31) -> 47 | U31: =T31/110 -> 0.43 | V31: =U31/0.61 -> 0.70 | W31: 28
B32: Корсабашский детский сад «Кояшкай» | C32: 5 | D32: 0 | E32: 0 | F32: 0 | G32: 3 | H32: 5 | I32: 8 | J32: 6 | K32: 5 | L32: 0 | M32: 0 | N32: 6 | O32: 0 | P32: 5 | Q32: 0 | R32: 0 | S32: 3 | T32: =SUM(C32:S32) -> 46 | U32: =T32/110 -> 0.42 | V32: =U32/0.61 -> 0.69 | W32: 29
B33: Сатышевский детский сад «Кояшкай» | C33: 5 | D33: 0 | E33: 0 | F33: 3 | G33: 0 | H33: 5 | I33: 8 | J33: 8 | K33: 0 | L33: 0 | M33: 6 | N33: 3 | O33: 0 | P33: 0 | Q33: 0 | R33: 0 | S33: 0 | T33: =SUM(C33:S33) -> 38 | U33: =T33/110 -> 0.35 | V33: =U33/0.61 -> 0.57 | W33: 30

Sheet С количеством групп более трех
W1: Приложение №2
A2: Критерии рейтинга ДОУ
A3: Наименование ДОУ | B3: 1 | C3: 2 | D3: 3 | E3: 4 | F3: 5 | G3: 6 | H3: 7 | I3: 8 | J3: 9 | K3: 10 | L3: 11 | M3: 12 | N3: 13 | O3: 14 | P3: 15 | Q3: 16 | R3: 17 | S3: 18 | T3: 19 | U3: 20 | V3: ИТОГО | W3: Квып ДОО | X3: Кr | Y3: Место в рейтинге
A4: Сабинский детский сад № 5 «Бэлэкэч» | B4: 5 | C4: 4.6 | D4: 8 | E4: 9 | F4: 9 | G4: 7 | H4: 5 | I4: 5 | J4: 0 | K4: 0 | L4: 8 | M4: 8 | N4: 0 | O4: 5 | P4: 8 | Q4: 6 | R4: 0 | S4: 10 | T4: 7.36 | U4: 5 | V4: =SUM(B4:U4) -> 109.96 | W4: =V4/140 -> 0.79 | X4: =W4/0.61 -> 1.29 | Y4: 1
A5: Сабинский детский сад №3 «Шоколад» | B5: 5 | C5: 8 | D5: 8 | E5: 9 | F5: 9 | G5: 7 | H5: 5 | I5: 5 | J5: 0 | K5: 0 | L5: 8 | M5: 8 | N5: 0 | O5: 5 | P5: 8 | Q5: 3 | R5: 0 | S5: 10 | T5: 3.6 | U5: 3 | V5: =SUM(B5:U5) -> 104.6 | W5: =V5/140 -> 0.75 | X5: =W5/0.61 -> 1.22 | Y5: 2
A6: Шеморданский детский сад №3 «Салават купере» | B6: 5 | C6: 7.3 | D6: 10 | E6: 9 | F6: 9 | G6: 7 | H6: 5 | I6: 5 | J6: 0 | K6: 0 | L6: 8 | M6: 8 | N6: 0 | O6: 5 | P6: 4.46 | Q6: 6 | R6: 0 | S6: 10 | T6: 1.2 | U6: 3 | V6: =SUM(B6:U6) -> 102.96 | W6: =V6/140 -> 0.74 | X6: =W6/0.61 -> 1.21 | Y6: 3
A7: Шеморданский детский сад №1 «Экият» | B7: 5 | C7: 10 | D7: 5 | E7: 6 | F7: 9 | G7: 7 | H7: 5 | I7: 0 | J7: 0 | K7: 0 | L7: 8 | M7: 8 | N7: 0 | O7: 5 | P7: 8 | Q7: 6 | R7: 0 | S7: 10 | T7: 6.28 | U7: 3 | V7: =SUM(B7:U7) -> 101.28 | W7: =V7/140 -> 0.72 | X7: =W7/0.61 -> 1.19 | Y7: 4
A8: Сабинский детский сад №1 «Шатлык» | B8: 5 | C8: 4.63 | D8: 5 | E8: 9 | F8: 9 | G8: 3 | H8: 5 | I8: 5 | J8: 0 | K8: 0 | L8: 8 | M8: 8 | N8: 0 | O8: 0.7 | P8: 7.35 | Q8: 6 | R8: 0 | S8: 10 | T8: 8.9 | U8: 5 | V8: =SUM(B8:U8) -> 99.58 | W8: =V8/140 -> 0.71 | X8: =W8/0.61 -> 1.17 | Y8: 5
A9: Сабинский детский сад № 4 «Кынгырау» | B9: 5 | C9: 8 | D9: 5 | E9: 6 | F9: 9 | G9: 3 | H9: 5 | I9: 5 | J9: 0 | K9: 0 | L9: 8 | M9: 8 | N9: 0 | O9: 5 | P9: 10 | Q9: 3 | R9: 0 | S9: 10 | T9: 6.40 | U9: 3 | V9: =SUM(B9:U9) -> 99.4 | W9: =V9/140 -> 0.71 | X9: =W9/0.61 -> 1.16 | Y9: 6
A10: Сабинский детский сад №2 «Эллуки» | B10: 5 | C10: 9.7 | D10: 5 | E10: 6 | F10: 9 | G10: 3 | H10: 5 | I10: 5 | J10: 0 | K10: 0 | L10: 8 | M10: 8 | N10: 0 | O10: 0.7 | P10: 7 | Q10: 6 | R10: 0 | S10: 10 | T10: 8.9 | U10: 3 | V10: =SUM(B10:U10) -> 99.3 | W10: =V10/140 -> 0.71 | X10: =W10/0.61 -> 1.16 | Y10: 7
A11: Шеморданский детский сад №2 «Теремок» | B11: 5 | C11: 0 | D11: 5 | E11: 6 | F11: 9 | G11: 3 | H11: 5 | I11: 5 | J11: 0 | K11: 0 | L11: 8 | M11: 8 | N11: 0 | O11: 5 | P11: 10 | Q11: 6 | R11: -3 | S11: 10 | T11: 6.64 | U11: 3 | V11: =SUM(B11:U11) -> 91.64 | W11: =V11/140 -> 0.65 | X11: =W11/0.61 -> 1.07 | Y11: 8
A12: Сабинский детский сад № 6 «Балачак» | B12: 5 | C12: 0 | D12: 8 | E12: 6 | F12: 9 | G12: 3 | H12: 5 | I12: 5 | J12: 0 | K12: 0 | L12: 8 | M12: 8 | N12: 0 | O12: 5 | P12: 5.4 | Q12: 6 | R12: 0 | S12: 10 | T12: 3.6 | U12: 3 | V12: =SUM(B12:U12) -> 90 | W12: =V12/140 -> 0.64 | X12: =W12/0.61 -> 1.05 | Y12: 9

Sheet Лист3
